fUSD/lending_fUSD_20250112
["ID","MTS","AMOUNT","RATE_DAILY","PERIOD"]
[348591074,1736652642659,-500.0,9.993e-05,2]
[348591075,1736652642669,-500.0,9.993e-05,2]
[348591076,1736652642679,-3335.3,9.993e-05,2]
[348591077,1736652642690,-501.48861804,9.993e-05,2]
[348591078,1736652642699,-897.94,9.993e-05,2]
[348591079,1736652642708,-507.64,9.993e-05,2]
[348591080,1736652642717,-501.87475289,9.993e-05,2]
[348591081,1736652642727,-500.0,9.993e-05,2]
[348591082,1736652642735,-501.29537606,9.993e-05,2]
[348591083,1736652642745,-500.0,9.993e-05,2]
[348591084,1736652642754,-828.02,9.993e-05,2]
[348591085,1736652642763,-1091.94,9.993e-05,2]
[348591086,1736652642772,-500.0,9.993e-05,2]
[348591087,1736652642781,-2599.27,9.993e-05,2]
[348591088,1736652642789,-500.0,9.993e-05,2]
[348591089,1736652642798,-500.0,9.993e-05,2]
[348591090,1736652642807,-744.01,9.993e-05,2]
[348591091,1736652642816,-500.0,9.993e-05,2]
[348591092,1736652642824,-743.23,9.993e-05,2]
[348591093,1736652642833,-500.0,9.993e-05,2]
[348591094,1736652642843,-500.0,9.993e-05,2]
[348591095,1736652642852,-500.0,9.993e-05,2]
[348591096,1736652642861,-500.0,9.993e-05,2]
[348591097,1736652642870,-500.0,9.993e-05,2]
[348591098,1736652642879,-734.83,9.993e-05,2]
[348591099,1736652642888,-500.0,9.993e-05,2]
[348591100,1736652642896,-500.0,9.993e-05,2]
[348591101,1736652642905,-926.77,9.993e-05,2]
[348591102,1736652642914,-500.0,9.993e-05,2]
[348591103,1736652642924,-500.0,9.993e-05,2]
[348591104,1736652642933,-401.46610498,9.993e-05,2]
[348591106,1736652642943,-501.12211764,9.993e-05,2]
[348591107,1736652642953,-502.55839557,9.993e-05,2]
[348591108,1736652642962,-500.0,9.993e-05,2]
[348591109,1736652642972,-521.37376361,9.993e-05,2]
[348591110,1736652642982,-500.0,9.993e-05,2]
[348591111,1736652642991,-500.0,9.993e-05,2]
[348591112,1736652643001,-500.0,9.993e-05,2]
[348591113,1736652643010,-510.88223724,9.993e-05,2]
[348591114,1736652643019,-500.0,9.993e-05,2]
[348591115,1736652643028,-500.0,9.993e-05,2]
[348591116,1736652643038,-500.0,9.993e-05,2]
[348591117,1736652643047,-720.28,9.993e-05,2]
[348591118,1736652643056,-503.89956004,9.993e-05,2]
[348591119,1736652643066,-504.5,9.993e-05,2]
[348591120,1736652643075,-500.0,9.993e-05,2]
[348591121,1736652643084,-500.0,9.993e-05,2]
[348591122,1736652643093,-3118.76,9.993e-05,2]
[348591124,1736652643102,-502.79136194,9.993e-05,2]
[348591125,1736652643111,-500.0,9.993e-05,2]
[348591126,1736652643121,-500.0,9.993e-05,2]
[348591127,1736652643131,-1296.78,9.993e-05,2]
[348591128,1736652643140,-501.21418253,9.993e-05,2]
[348591129,1736652643150,-500.0,9.993e-05,2]
[348591130,1736652643159,-502.1776231,9.993e-05,2]
[348591131,1736652643169,-500.0,9.993e-05,2]
[348591132,1736652643178,-500.0,9.993e-05,2]
[348591133,1736652643187,-500.0,9.993e-05,2]
[348591134,1736652643196,-500.0,9.993e-05,2]
[348591135,1736652643205,-500.0,9.993e-05,2]
[348591136,1736652643214,-3920.4,9.993e-05,2]
[348591137,1736652643224,-1270.6,9.993e-05,2]
[348591138,1736652643233,-500.0,9.993e-05,2]
[348591139,1736652643242,-500.0,9.993e-05,2]
[348591140,1736652643251,-500.0,9.993e-05,2]
[348591141,1736652643260,-1040.93,9.993e-05,2]
[348591142,1736652643270,-501.72019785,9.993e-05,2]
[348591143,1736652643278,-500.0,9.993e-05,2]
[348591144,1736652643287,-500.0,9.993e-05,2]
[348591145,1736652643296,-507.35595632,9.993e-05,2]
[348591146,1736652643305,-504.48130917,9.993e-05,2]
[348591147,1736652643314,-1112.13,9.993e-05,2]
[348591148,1736652643323,-501.44002129,9.993e-05,2]
[348591150,1736652643332,-501.96838629,9.993e-05,2]
[348591152,1736652643341,-500.0,9.993e-05,2]
[348591154,1736652643350,-503.7125762,9.993e-05,2]
[348591156,1736652643359,-500.0,9.993e-05,2]
[348591157,1736652643368,-502.84954173,9.993e-05,2]
[348591158,1736652643378,-500.0,9.993e-05,2]
[348591159,1736652643387,-500.0,9.993e-05,2]
[348591160,1736652643396,-501.79049357,9.993e-05,2]
[348591161,1736652643408,-502.84717774,9.993e-05,2]
[348591162,1736652643417,-540.98417698,9.993e-05,2]
[348591163,1736652643426,-1405.54,9.993e-05,2]
[348591164,1736652643435,-500.0,9.993e-05,2]
[348591165,1736652643444,-500.0,9.993e-05,2]
[348591166,1736652643457,-151.0,9.993e-05,2]
[348591167,1736652643467,-151.0,9.993e-05,2]
[348591168,1736652643476,-151.0,9.993e-05,2]
[348591169,1736652643487,-151.0,9.993e-05,2]
[348591170,1736652643496,-2025.87,9.993e-05,2]
[348591171,1736652643507,-602.84,9.993e-05,2]
[348591172,1736652643516,-500.0,9.993e-05,2]
[348591173,1736652643526,-666.45,9.993e-05,2]
[348591174,1736652643535,-167.64832442,9.993e-05,2]
[348591175,1736652643544,-548.96,9.993e-05,2]
[348591176,1736652643563,-1192.11,9.993e-05,2]
[348591177,1736652643574,-3530.27,9.993e-05,2]
[348591178,1736652643585,-500.0,9.993e-05,2]
[348591179,1736652643595,-510.24054322,9.993e-05,2]
[348591180,1736652643606,-1099.48,9.993e-05,2]
[348591181,1736652643617,-500.0,9.993e-05,2]
[348591182,1736652643629,-500.0,9.993e-05,2]
[348591183,1736652643639,-500.0,9.993e-05,2]
[348591184,1736652643648,-500.0,9.993e-05,2]
[348591185,1736652643658,-1720.4,9.993e-05,2]
[348591186,1736652643668,-500.0,9.993e-05,2]
[348591187,1736652643678,-500.0,9.993e-05,2]
[348591188,1736652643689,-500.0,9.993e-05,2]
[348591189,1736652643699,-500.0,9.993e-05,2]
[348591190,1736652643710,-526.45,9.993e-05,2]
[348591191,1736652643720,-500.0,9.994e-05,2]
[348591192,1736652643730,-505.19681611,9.994e-05,2]
[348591193,1736652643740,-500.0,9.994e-05,2]
[348591194,1736652643750,-151.0,9.994e-05,2]
[348591195,1736652643760,-212.601213,9.994e-05,2]
[348591196,1736652643769,-500.0,9.994e-05,2]
[348591197,1736652643779,-500.0,9.994e-05,2]
[348591198,1736652643788,-500.0,9.994e-05,2]
[348591199,1736652643797,-500.0,9.994e-05,2]
[348591200,1736652643806,-330.04666086,9.994e-05,2]
[348591201,1736652643815,-500.0,9.994e-05,2]
[348591202,1736652643824,-504.69918787,9.994e-05,2]
[348591203,1736652643834,-500.0,9.994e-05,2]
[348591204,1736652643843,-500.0,9.994e-05,2]
[348591205,1736652643852,-500.0,9.994e-05,2]
[348591206,1736652643861,-500.0,9.994e-05,2]
[348591207,1736652643870,-500.0,9.994e-05,2]
[348591208,1736652643879,-500.0,9.994e-05,2]
[348591209,1736652643888,-763.23,9.994e-05,2]
[348591210,1736652643898,-500.0,9.994e-05,2]
[348591211,1736652643907,-500.0,9.994e-05,2]
[348591212,1736652643917,-405.77965165,9.994e-05,2]
[348591213,1736652643926,-500.0,9.994e-05,2]
[348591214,1736652643935,-505.8821177,9.994e-05,2]
[348591215,1736652643945,-500.0,9.994e-05,2]
[348591216,1736652643954,-500.0,9.994e-05,2]
[348591217,1736652643964,-505.51222933,9.994e-05,2]
[348591218,1736652643974,-500.0,9.994e-05,2]
[348591219,1736652643983,-500.0,9.994e-05,2]
[348591220,1736652643992,-500.0,9.994e-05,2]
[348591221,1736652644001,-500.0,9.994e-05,2]
[348591222,1736652644011,-151.0,9.994e-05,2]
[348591223,1736652644020,-151.0,9.994e-05,2]
[348591224,1736652644029,-151.0,9.994e-05,2]
[348591225,1736652644038,-151.0,9.994e-05,2]
[348591226,1736652644047,-500.0,9.994e-05,2]
[348591227,1736652644057,-151.0,9.994e-05,2]
[348591228,1736652644066,-500.0,9.994e-05,2]
[348591229,1736652644075,-151.0,9.994e-05,2]
[348591230,1736652644084,-151.0,9.994e-05,2]
[348591231,1736652644094,-151.0,9.994e-05,2]
[348591232,1736652644103,-500.0,9.994e-05,2]
[348591233,1736652644113,-500.0,9.994e-05,2]
[348591234,1736652644122,-500.0,9.994e-05,2]
[348591235,1736652644132,-500.0,9.994e-05,2]
[348591236,1736652644141,-379.92968412,9.994e-05,2]
[348591237,1736652644151,-506.3772778,9.994e-05,2]
[348591238,1736652644160,-1137.75,9.994e-05,2]
[348591239,1736652644169,-500.0,9.994e-05,2]
[348591240,1736652644179,-500.0,9.994e-05,2]
[348591241,1736652644188,-500.0,9.994e-05,2]
[348591242,1736652644198,-540.15,9.994e-05,2]
[348591243,1736652644207,-204.96914703,9.994e-05,2]
[348591244,1736652644216,-500.0,9.994e-05,2]
[348591245,1736652644227,-870.51,9.994e-05,2]
[348591246,1736652644236,-500.0,9.994e-05,2]
[348591247,1736652644246,-500.0,9.994e-05,2]
[348591248,1736652644255,-500.0,9.994e-05,2]
[348591249,1736652644265,-649.79,9.994e-05,2]
[348591250,1736652644274,-500.0,9.994e-05,2]
[348591251,1736652644283,-1200.57,9.994e-05,2]
[348591252,1736652644293,-500.0,9.994e-05,2]
[348591253,1736652644302,-1375.86,9.994e-05,2]
[348591254,1736652644311,-500.0,9.994e-05,2]
[348591255,1736652644321,-500.0,9.994e-05,2]
[348591256,1736652644330,-567.81,9.994e-05,2]
[348591257,1736652644340,-1616.89,9.994e-05,2]
[348591258,1736652644349,-500.0,9.994e-05,2]
[348591259,1736652644358,-530.82,9.994e-05,2]
[348591260,1736652644368,-151.0,9.994e-05,2]
[348591261,1736652644377,-500.0,9.994e-05,2]
[348591262,1736652644387,-151.0,9.994e-05,2]
[348591263,1736652644397,-2265.07,9.994e-05,2]
[348591264,1736652644409,-500.0,9.994e-05,2]
[348591265,1736652644419,-678.93,9.994e-05,2]
[348591266,1736652644427,-500.0,9.994e-05,2]
[348591267,1736652644437,-5795.92,9.994e-05,2]
[348591268,1736652644446,-500.0,9.994e-05,2]
[348591269,1736652644455,-500.0,9.994e-05,2]
[348591270,1736652644464,-500.0,9.994e-05,2]
[348591271,1736652644475,-849.25,9.994e-05,2]
[348591272,1736652644484,-500.0,9.994e-05,2]
[348591273,1736652644493,-813.65422404,9.994e-05,2]
[348591274,1736652645288,-514.80577596,9.994e-05,2]
[348591275,1736652645297,-990.99,9.994e-05,2]
[348591276,1736652645306,-726.84,9.994e-05,2]
[348591277,1736652645316,-500.0,9.994e-05,2]
[348591278,1736652645325,-874.71,9.994e-05,2]
[348591279,1736652645334,-500.0,9.994e-05,2]
[348591280,1736652645344,-500.0,9.994e-05,2]
[348591281,1736652645353,-3512.34422404,9.994e-05,2]
[348591282,1736652645395,-260.82577596,9.994e-05,2]
[348591283,1736652645407,-500.0,9.994e-05,2]
[348591284,1736652645417,-634.67,9.994e-05,2]
[348591285,1736652645426,-536.3,9.994e-05,2]
[348591286,1736652645435,-648.14177578,9.994e-05,2]
[348591287,1736652645444,-500.0,9.994e-05,2]
[348591288,1736652645454,-1454.46,9.994e-05,2]
[348591289,1736652645463,-500.0,9.994e-05,2]
[348591290,1736652645473,-693.24,9.994e-05,2]
[348591291,1736652645483,-470.37795048,9.994e-05,2]
[348591292,1736652645782,-347.06404734,9.993e-05,2]
[348591293,1736652645880,-1151.96595266,9.993e-05,2]
[348591294,1736652645890,-1780.29204952,9.994e-05,2]
[348591295,1736652645899,-2293.5,9.994e-05,2]
[348591296,1736652645909,-1199.15,9.994e-05,2]
[348591297,1736652645918,-158.89137725,9.994e-05,2]
[348591298,1736652645929,-332.71918515,9.994e-05,2]
[348591299,1736652645942,-8.3894376,9.994e-05,2]
[348591300,1736652645952,-276.8786104,9.994e-05,2]
[348591301,1736652646011,-500.0,9.992e-05,2]
[348591302,1736652646023,-39.8,9.994e-05,2]
[348591303,1736652646034,-418.0213896,9.994e-05,2]
[348591304,1736652646043,-111.3727836,9.994e-05,2]
[348591305,1736652646054,-871.34633086,9.994e-05,2]
[348591309,1736652646605,-501.60297872,9.992e-05,2]
[348591310,1736652646616,-500.0,9.992e-05,2]
[348591311,1736652646626,-249.78160563,9.993e-05,2]
[348591312,1736652646637,-254.98258777,9.993e-05,2]
[348591313,1736652646646,-499.88,9.993e-05,2]
[348591314,1736652646657,-370.03088554,9.994e-05,2]
[348591315,1736652646666,-26.52888509,9.994e-05,2]
[348591316,1736652646677,-473.47111491,9.994e-05,2]
[348591317,1736652646687,-888.58,9.994e-05,2]
[348591318,1736652646696,-646.79,9.994e-05,2]
[348591319,1736652646705,-1772.04,9.994e-05,2]
[348591320,1736652646714,-413.07302588,9.994e-05,2]
[348591321,1736652646732,-1482.04697412,9.994e-05,2]
[348591322,1736652646741,-1000.0,9.994e-05,2]
[348591323,1736652646750,-828.21,9.994e-05,2]
[348591324,1736652646759,-318.73665436,9.994e-05,2]
[348591325,1736652646770,-398.13334564,9.994e-05,2]
[348591326,1736652646779,-1.92136436,9.994e-05,2]
[348591327,1736652646815,-149.07863564,9.994e-05,2]
[348591328,1736652646824,-109.43505365,9.994e-05,2]
[348591329,1736653154736,1254.27,8.219e-05,2]
[348591339,1736653554027,250.0,8.336e-05,2]
[348591345,1736653679746,23900.0,8.249e-05,2]
[348591346,1736653737253,250.0,8.254e-05,2]
[348591363,1736653832568,-423.79366627,9e-05,2]
[348591364,1736653832578,-150.0,9e-05,2]
[348591365,1736653832587,-220.79742801,9e-05,2]
[348591366,1736653832596,-150.1313054,9e-05,2]
[348591367,1736653832606,-150.06801563,9e-05,2]
[348591368,1736653832615,-262.17629856,9e-05,2]
[348591369,1736653832624,-150.0,9e-05,2]
[348591370,1736653832633,-423.79366627,9.01e-05,2]
[348591371,1736653832643,-220.79742801,9.01e-05,2]
[348591372,1736653832652,-150.0,9.013e-05,2]
[348591373,1736653832661,-423.79366627,9.02e-05,2]
[348591374,1736653832673,-220.79742801,9.02e-05,2]
[348591375,1736653832683,-150.0,9.027e-05,2]
[348591376,1736653832693,-423.79366627,9.03e-05,2]
[348591377,1736653832703,-220.79742801,9.03e-05,2]
[348591378,1736653832712,-2000.0,9.034e-05,2]
[348591379,1736653832721,-1000.0,9.035e-05,2]
[348591380,1736653832731,-150.0,9.04e-05,2]
[348591381,1736653832740,-423.79366627,9.04e-05,2]
[348591382,1736653832750,-220.79742801,9.04e-05,2]
[348591383,1736653832760,-150.0,9.042e-05,2]
[348591384,1736653832770,-250.0,9.05e-05,2]
[348591385,1736653832779,-331.68,9.05e-05,2]
[348591386,1736653832789,-423.79366627,9.051e-05,2]
[348591387,1736653832799,-220.79742801,9.051e-05,2]
[348591388,1736653832808,-150.0,9.053e-05,2]
[348591389,1736653832818,-423.79366627,9.061e-05,2]
[348591390,1736653832827,-220.79742801,9.061e-05,2]
[348591391,1736653832836,-150.0,9.067e-05,2]
[348591392,1736653832846,-423.79366627,9.071e-05,2]
[348591393,1736653832855,-220.79742801,9.071e-05,2]
[348591394,1736653832864,-166.58,9.078e-05,2]
[348591395,1736653832873,-150.0,9.08e-05,2]
[348591396,1736653832882,-423.79366627,9.081e-05,2]
[348591397,1736653832892,-220.79742801,9.081e-05,2]
[348591398,1736653832901,-150.0,9.083e-05,2]
[348591399,1736653832910,-423.79366627,9.091e-05,2]
[348591400,1736653832920,-220.79742801,9.091e-05,2]
[348591401,1736653832929,-150.0,9.093e-05,2]
[348591402,1736653832939,-150.0,9.097e-05,2]
[348591403,1736653832949,-435.79,9.097e-05,2]
[348591404,1736653832959,-423.79366627,9.101e-05,2]
[348591405,1736653832968,-220.79742801,9.101e-05,2]
[348591406,1736653832979,-150.0,9.107e-05,2]
[348591407,1736653832989,-423.79366627,9.111e-05,2]
[348591408,1736653833003,-220.79742801,9.111e-05,2]
[348591409,1736653833012,-150.0,9.12e-05,2]
[348591410,1736653833021,-423.79366627,9.121e-05,2]
[348591411,1736653833031,-220.79742801,9.121e-05,2]
[348591412,1736653833040,-150.0,9.125e-05,2]
[348591413,1736653833050,-423.79366627,9.131e-05,2]
[348591414,1736653833059,-220.79742801,9.131e-05,2]
[348591415,1736653833068,-150.0,9.133e-05,2]
[348591416,1736653833078,-423.79366627,9.141e-05,2]
[348591417,1736653833088,-220.79742801,9.141e-05,2]
[348591418,1736653833097,-150.0,9.147e-05,2]
[348591419,1736653833106,-423.79366627,9.152e-05,2]
[348591420,1736653833115,-220.79742801,9.152e-05,2]
[348591421,1736653833125,-150.0,9.16e-05,2]
[348591422,1736653833134,-423.79366627,9.162e-05,2]
[348591423,1736653833143,-220.79742801,9.162e-05,2]
[348591424,1736653833152,-150.0,9.167e-05,2]
[348591425,1736653833162,-423.79366627,9.172e-05,2]
[348591426,1736653833171,-220.79742801,9.172e-05,2]
[348591427,1736653833180,-150.0,9.173e-05,2]
[348591428,1736653833190,-423.79366627,9.182e-05,2]
[348591429,1736653833199,-220.79742801,9.182e-05,2]
[348591430,1736653833208,-150.0,9.187e-05,2]
[348591431,1736653833218,-423.79366627,9.192e-05,2]
[348591432,1736653833228,-220.79742801,9.192e-05,2]
[348591433,1736653833237,-150.0,9.2e-05,2]
[348591434,1736653833246,-423.79366627,9.202e-05,2]
[348591435,1736653833256,-220.79742801,9.202e-05,2]
[348591436,1736653833265,-150.0,9.208e-05,2]
[348591437,1736653833274,-423.79366627,9.212e-05,2]
[348591438,1736653833284,-220.79742801,9.212e-05,2]
[348591439,1736653833293,-150.0,9.213e-05,2]
[348591440,1736653833303,-423.79366627,9.222e-05,2]
[348591441,1736653833312,-220.79742801,9.222e-05,2]
[348591442,1736653833322,-150.0,9.227e-05,2]
[348591443,1736653833332,-423.79366627,9.232e-05,2]
[348591444,1736653833342,-220.79742801,9.232e-05,2]
[348591445,1736653833351,-150.0,9.24e-05,2]
[348591446,1736653833361,-423.79366627,9.242e-05,2]
[348591447,1736653833371,-220.79742801,9.242e-05,2]
[348591448,1736653833380,-150.0,9.25e-05,2]
[348591449,1736653833390,-423.79366627,9.253e-05,2]
[348591450,1736653833399,-220.79742801,9.253e-05,2]
[348591451,1736653833409,-150.0,9.253e-05,2]
[348591452,1736653833419,-423.79366627,9.263e-05,2]
[348591453,1736653833428,-220.79742801,9.263e-05,2]
[348591454,1736653833437,-150.0,9.267e-05,2]
[348591455,1736653833447,-423.79366627,9.273e-05,2]
[348591456,1736653833456,-220.79742801,9.273e-05,2]
[348591457,1736653833466,-150.0,9.28e-05,2]
[348591458,1736653833475,-423.79366627,9.283e-05,2]
[348591459,1736653833485,-220.79742801,9.283e-05,2]
[348591460,1736653833494,-150.0,9.292e-05,2]
[348591461,1736653833503,-423.79366627,9.293e-05,2]
[348591462,1736653833513,-220.79742801,9.293e-05,2]
[348591463,1736653833523,-150.0,9.293e-05,2]
[348591464,1736653833533,-423.79366627,9.303e-05,2]
[348591465,1736653833543,-220.79742801,9.303e-05,2]
[348591466,1736653833552,-150.0,9.307e-05,2]
[348591467,1736653833562,-423.79366627,9.313e-05,2]
[348591468,1736653833571,-220.79742801,9.313e-05,2]
[348591469,1736653833582,-150.0,9.32e-05,2]
[348591470,1736653833591,-423.79366627,9.323e-05,2]
[348591471,1736653833600,-220.79742801,9.323e-05,2]
[348591472,1736653833610,-423.79366627,9.333e-05,2]
[348591473,1736653833620,-150.0,9.333e-05,2]
[348591474,1736653833630,-220.79742801,9.333e-05,2]
[348591475,1736653833640,-150.0,9.333e-05,2]
[348591476,1736653833650,-423.79366627,9.343e-05,2]
[348591477,1736653833659,-220.79742801,9.343e-05,2]
[348591478,1736653833669,-150.0,9.347e-05,2]
[348591479,1736653833679,-423.79366627,9.354e-05,2]
[348591480,1736653833688,-220.79742801,9.354e-05,2]
[348591481,1736653833697,-150.0,9.36e-05,2]
[348591482,1736653833707,-423.79366627,9.364e-05,2]
[348591483,1736653833716,-220.79742801,9.364e-05,2]
[348591484,1736653833726,-167.06,9.369e-05,2]
[348591485,1736653833735,-150.0,9.373e-05,2]
[348591486,1736653833744,-423.79366627,9.374e-05,2]
[348591487,1736653833754,-220.79742801,9.374e-05,2]
[348591488,1736653833763,-150.0,9.375e-05,2]
[348591489,1736653833772,-423.79366627,9.384e-05,2]
[348591490,1736653833782,-220.79742801,9.384e-05,2]
[348591491,1736653833792,-150.0,9.387e-05,2]
[348591492,1736653833801,-423.79366627,9.394e-05,2]
[348591493,1736653833811,-220.79742801,9.394e-05,2]
[348591494,1736653833820,-150.0,9.4e-05,2]
[348591495,1736653833830,-423.79366627,9.404e-05,2]
[348591496,1736653833840,-220.79742801,9.404e-05,2]
[348591497,1736653833850,-150.0,9.413e-05,2]
[348591498,1736653833859,-423.79366627,9.414e-05,2]
[348591499,1736653833869,-220.79742801,9.414e-05,2]
[348591500,1736653833878,-150.0,9.417e-05,2]
[348591501,1736653833887,-423.79366627,9.424e-05,2]
[348591502,1736653833896,-220.79742801,9.424e-05,2]
[348591503,1736653833906,-150.0,9.427e-05,2]
[348591504,1736653833915,-423.79366627,9.434e-05,2]
[348591505,1736653833924,-220.79742801,9.434e-05,2]
[348591506,1736653833934,-150.0,9.44e-05,2]
[348591507,1736653833944,-423.79366627,9.444e-05,2]
[348591508,1736653833954,-220.79742801,9.444e-05,2]
[348591509,1736653833963,-150.0,9.453e-05,2]
[348591510,1736653833973,-423.79366627,9.455e-05,2]
[348591511,1736653833982,-220.79742801,9.455e-05,2]
[348591512,1736653833991,-150.0,9.458e-05,2]
[348591513,1736653834004,-423.79366627,9.465e-05,2]
[348591514,1736653834013,-220.79742801,9.465e-05,2]
[348591515,1736653834023,-150.0,9.467e-05,2]
[348591516,1736653834033,-423.79366627,9.475e-05,2]
[348591517,1736653834043,-220.79742801,9.475e-05,2]
[348591518,1736653834054,-150.0,9.478e-05,2]
[348591519,1736653834063,-150.0,9.478e-05,2]
[348591520,1736653834072,-150.0,9.478e-05,2]
[348591521,1736653834082,-150.0,9.48e-05,2]
[348591522,1736653834092,-423.79366627,9.485e-05,2]
[348591523,1736653834101,-220.79742801,9.485e-05,2]
[348591524,1736653834111,-150.0,9.493e-05,2]
[348591525,1736653834120,-423.79366627,9.495e-05,2]
[348591526,1736653834129,-220.79742801,9.495e-05,2]
[348591527,1736653834138,-150.0,9.5e-05,2]
[348591528,1736653834147,-423.79366627,9.505e-05,2]
[348591529,1736653834157,-220.79742801,9.505e-05,2]
[348591530,1736653834167,-150.0,9.507e-05,2]
[348591531,1736653834176,-423.79366627,9.515e-05,2]
[348591532,1736653834186,-220.79742801,9.515e-05,2]
[348591533,1736653834195,-150.0,9.52e-05,2]
[348591534,1736653834205,-423.79366627,9.525e-05,2]
[348591535,1736653834214,-220.79742801,9.525e-05,2]
[348591536,1736653834223,-150.0,9.533e-05,2]
[348591537,1736653834232,-423.79366627,9.535e-05,2]
[348591538,1736653834242,-220.79742801,9.535e-05,2]
[348591539,1736653834432,-150.0,9.542e-05,2]
[348591540,1736653834442,-423.79366627,9.545e-05,2]
[348591541,1736653834452,-220.79742801,9.545e-05,2]
[348591542,1736653834462,-150.0,9.547e-05,2]
[348591543,1736653834473,-423.79366627,9.556e-05,2]
[348591544,1736653834483,-220.79742801,9.556e-05,2]
[348591545,1736653834493,-150.0,9.56e-05,2]
[348591546,1736653834502,-423.79366627,9.566e-05,2]
[348591547,1736653834512,-220.79742801,9.566e-05,2]
[348591548,1736653834521,-150.0,9.573e-05,2]
[348591549,1736653834531,-423.79366627,9.576e-05,2]
[348591550,1736653834540,-220.79742801,9.576e-05,2]
[348591551,1736653834549,-150.0,9.583e-05,2]
[348591552,1736653834559,-423.79366627,9.586e-05,2]
[348591553,1736653834568,-220.79742801,9.586e-05,2]
[348591554,1736653834577,-150.0,9.587e-05,2]
[348591555,1736653834587,-423.79366627,9.596e-05,2]
[348591556,1736653834596,-220.79742801,9.596e-05,2]
[348591557,1736653834605,-150.0,9.6e-05,2]
[348591558,1736653834616,-423.79366627,9.606e-05,2]
[348591559,1736653834625,-220.79742801,9.606e-05,2]
[348591560,1736653834634,-150.0,9.613e-05,2]
[348591561,1736653834643,-423.79366627,9.616e-05,2]
[348591562,1736653834652,-220.79742801,9.616e-05,2]
[348591563,1736653834662,-150.0,9.625e-05,2]
[348591564,1736653834671,-423.79366627,9.626e-05,2]
[348591565,1736653834680,-220.79742801,9.626e-05,2]
[348591566,1736653834690,-150.0,9.627e-05,2]
[348591567,1736653834699,-423.79366627,9.636e-05,2]
[348591568,1736653834708,-220.79742801,9.636e-05,2]
[348591569,1736653834717,-150.0,9.64e-05,2]
[348591570,1736653834726,-423.79366627,9.646e-05,2]
[348591571,1736653834737,-220.79742801,9.646e-05,2]
[348591572,1736653834747,-150.0,9.653e-05,2]
[348591573,1736653834756,-423.79366627,9.657e-05,2]
[348591574,1736653834766,-220.79742801,9.657e-05,2]
[348591575,1736653834775,-423.79366627,9.667e-05,2]
[348591576,1736653834785,-150.0,9.667e-05,2]
[348591577,1736653834794,-220.79742801,9.667e-05,2]
[348591578,1736653834804,-150.0,9.667e-05,2]
[348591579,1736653834813,-423.79366627,9.677e-05,2]
[348591580,1736653834823,-220.79742801,9.677e-05,2]
[348591581,1736653834833,-150.0,9.68e-05,2]
[348591582,1736653834842,-423.79366627,9.687e-05,2]
[348591583,1736653834851,-220.79742801,9.687e-05,2]
[348591584,1736653834861,-150.0,9.693e-05,2]
[348591585,1736653834870,-423.79366627,9.697e-05,2]
[348591586,1736653834882,-220.79742801,9.697e-05,2]
[348591587,1736653834892,-150.0,9.707e-05,2]
[348591588,1736653834902,-423.79366627,9.707e-05,2]
[348591589,1736653834911,-220.79742801,9.707e-05,2]
[348591590,1736653834920,-150.0,9.708e-05,2]
[348591591,1736653834929,-423.79366627,9.717e-05,2]
[348591592,1736653834939,-220.79742801,9.717e-05,2]
[348591593,1736653834950,-150.0,9.72e-05,2]
[348591594,1736653834959,-423.79366627,9.727e-05,2]
[348591595,1736653834970,-220.79742801,9.727e-05,2]
[348591596,1736653834980,-150.0,9.733e-05,2]
[348591597,1736653834989,-423.79366627,9.737e-05,2]
[348591598,1736653835004,-220.79742801,9.737e-05,2]
[348591599,1736653835014,-150.0,9.747e-05,2]
[348591600,1736653835024,-423.79366627,9.747e-05,2]
[348591601,1736653835034,-220.79742801,9.747e-05,2]
[348591602,1736653835046,-150.0,9.75e-05,2]
[348591603,1736653835056,-423.79366627,9.758e-05,2]
[348591604,1736653835066,-220.79742801,9.758e-05,2]
[348591605,1736653835077,-150.0,9.76e-05,2]
[348591606,1736653835086,-423.79366627,9.768e-05,2]
[348591607,1736653835095,-220.79742801,9.768e-05,2]
[348591608,1736653835105,-150.0,9.773e-05,2]
[348591609,1736653835114,-423.79366627,9.778e-05,2]
[348591610,1736653835123,-220.79742801,9.778e-05,2]
[348591611,1736653835132,-150.0,9.787e-05,2]
[348591612,1736653835141,-423.79366627,9.788e-05,2]